bitfinex-derivatives/quotes_SOLF0:USTF0_20240923
["timestamp","ask_amount","ask_price","bid_price","bid_amount"]
[1727052782597,1.4074,146.43,146.39,11.49]
[1727052782598,4.822,146.43,146.39,11.49]
[1727052782911,1.4074,146.43,146.37,11.49]
[1727052783207,3.415,146.41,146.37,11.49]
[1727052783408,1.3771,146.44,146.39,11.49]
[1727052783717,1.3771,146.44,146.31,3.42733114]
[1727052783718,3.4148,146.41,146.36,11.49]
[1727052784008,11.49,146.4,146.3,11.49]
[1727052784310,2.02442986,146.45,146.35,11.49]
[1727052784311,0.62282986,146.45,146.35,11.49]
[1727052784513,0.62282986,146.45,146.4,11.49]
[1727052784514,1.447,146.44,146.4,11.49]
[1727052784809,0.62282986,146.45,146.42,11.49]
[1727052784994,0.62282986,146.45,146.44,11.49]
[1727052786008,0.62282986,146.45,146.42,11.49]
[1727052787099,0.55112897,146.51,146.44,11.49]
[1727052787301,0.55112897,146.51,146.47,11.49]
[1727052787703,0.55112897,146.51,146.31,82.04]
[1727052787906,0.55112897,146.51,146.44,11.49]
[1727052788107,11.49,146.46,146.25,82.0]
[1727052788309,4.56613027,146.49,146.25,82.0]
[1727052788310,4.0207,146.45,146.36,3.416]
[1727052788706,4.0207,146.45,146.35,18.37]
[1727052788905,3.4144,146.43,146.38,18.37]
[1727052789212,4.0207,146.45,146.38,18.37]
[1727052789418,3.4147,146.42,146.38,18.37]
[1727052789709,4.0207,146.45,146.38,18.37]
[1727052790099,4.0207,146.45,146.35,18.37]
[1727052790603,4.0207,146.45,146.25,103.81511986]
[1727052790604,4.0207,146.45,146.37,18.37]
[1727052790908,4.0207,146.45,146.35,18.37]
[1727052791101,3.415,146.41,146.35,18.37]
[1727052791306,4.0207,146.45,146.35,18.37]
[1727052791808,3.4148,146.42,146.36,3.416]
[1727052792017,3.4148,146.42,146.35,18.37]
[1727052792199,3.4148,146.42,146.36,3.416]
[1727052792802,3.4148,146.42,146.35,18.37]
[1727052792803,4.0207,146.45,146.38,18.37]
[1727052793213,4.58593766,146.49,146.42,21.7846]
[1727052793416,1.14867245,146.49,146.44,18.37]
[1727052794315,1.14867245,146.49,146.42,18.37]
[1727052794520,4.56638099,146.49,146.4,18.37]
[1727052795203,1.14867245,146.49,146.4,18.37]
[1727052795407,1.14867245,146.49,146.42,18.37]
[1727052795702,1.14867245,146.49,146.45,18.37]
[1727052797507,0.55112897,146.51,146.47,18.37]
[1727052797912,1.3355,146.57,146.5,18.37]
[1727052798114,2.8434,146.6,146.5,18.37]
[1727052798410,1.3355,146.59,146.5,18.37]
[1727052798616,1.3355,146.59,146.47,18.37]
[1727052799013,201.0,146.51,146.3,6.8348]
[1727052799321,201.0,146.51,146.39,18.37]
[1727052799322,2.7662,146.5,146.39,18.37]
[1727052799519,4.1789,146.5,146.41,18.37]
[1727052799816,1.3355,146.5,146.44,18.37]
[1727052800222,3.4132,146.49,146.44,18.37]
[1727052800607,1.3355,146.5,146.44,18.37]
[1727052801010,1.3152,146.55,146.44,18.37]
[1727052801613,1.3152,146.55,146.47,18.37]
[1727052802016,3.4124,146.52,146.47,18.37]
[1727052802420,1.3152,146.55,146.47,18.37]
[1727052803321,1.3152,146.55,146.44,18.37]
[1727052803522,16.20740738,146.55,146.44,18.37]
[1727052803723,14.89220738,146.54,146.44,18.37]
[1727052803912,16.20740738,146.55,146.4,18.37]
[1727052804113,18.37,146.54,146.4,18.37]
[1727052804313,3.4139,146.46,146.4,21.7849]
[1727052804510,14.89220738,146.53,146.4,18.37]
[1727052804917,3.4138,146.46,146.4,21.7849]
[1727052805320,3.46253671,146.48,146.4,21.7849]
[1727052805527,14.89220738,146.53,146.4,21.7849]
[1727052806427,3.4138,146.46,146.41,3.4148]
[1727052807625,3.414,146.45,146.4,21.7851]
[1727052808429,3.4142,146.44,146.4,21.7851]
[1727052808628,3.4142,146.44,146.41,3.4148]
[1727052809231,3.4142,146.44,146.4,21.785]
[1727052810225,3.4151,146.4,146.32,81.96]
[1727052810524,6.8238,146.54,146.32,81.96]
[1727052810525,3.47044755,146.44,146.32,81.96]
[1727052810730,22.4876,146.47,146.34,18.37]
[1727052810929,3.4156,146.38,146.34,21.7863]
[1727052811131,18.37,146.42,146.32,18.37]
[1727052811630,3.4162,146.36,146.32,21.7868]
[1727052812034,3.36658694,146.39,146.32,21.7868]
[1727052812323,18.37,146.42,146.29,18.37]
[1727052812717,18.37,146.42,146.29,21.7875]
[1727052812925,7.47325425,146.47,146.32,18.37]
[1727052812926,18.37,146.45,146.32,18.37]
[1727052813721,3.4148,146.42,146.32,18.37]
[1727052814022,18.37,146.4,146.24,81.96]
[1727052814229,4.1797,146.39,146.27,18.37]
[1727052814417,3.4169,146.33,146.27,21.788]
[1727052814825,3.4169,146.33,146.27,18.37]
[1727052815018,3.4165,146.34,146.27,18.37]
[1727052815531,7.55690497,146.39,146.3,18.37]
[1727052817133,3.4162,146.36,146.31,3.417]
[1727052817327,7.55690497,146.39,146.3,18.37]
[1727052818230,2.7645,146.39,146.32,18.37]
[1727052818729,3.4153,146.39,146.32,18.37]
[1727052818926,2.7042,146.44,146.32,18.37]
[1727052819323,2.7042,146.44,146.34,3.4163]
[1727052819324,3.4151,146.4,146.34,3.4163]
[1727052819518,2.7042,146.44,146.35,18.37]
[1727052819725,1.3156,146.44,146.35,18.37]
[1727052819926,2.7042,146.44,146.36,3.416]
[1727052820154,2.7042,146.44,146.38,18.37]
[1727052820625,2.7042,146.44,146.33,18.37]
[1727052821026,18.37,146.43,146.31,18.37]
[1727052821334,19.7259,146.43,146.31,18.37]
[1727052821726,19.7259,146.43,146.33,18.37]
[1727052821727,1.3559,146.43,146.33,18.37]
[1727052821929,2.7042,146.44,146.35,18.37]
[1727052822127,3.4144,146.43,146.37,3.4157]
[1727052822534,3.4144,146.43,146.35,18.37]
[1727052822731,1.3396,146.47,146.38,18.37]
[1727052823229,3.4143,146.44,146.38,21.7855]
[1727052823433,1.3396,146.47,146.38,18.37]
[1727052823434,4.73899857,146.47,146.38,18.37]
[1727052823635,1.3396,146.47,146.38,18.37]
[1727052823935,1.3396,146.47,146.35,18.37]
[1727052824137,2.7584,146.46,146.35,18.37]
[1727052824335,6.20358862,146.46,146.35,21.7862]
[1727052824639,2.7584,146.46,146.38,18.37]
[1727052825035,3.4145,146.43,146.38,18.37]
[1727052825532,3.4145,146.43,146.38,21.7855]
[1727052825732,18.37,146.53,146.4,18.37]
[1727052826035,1.3496,146.52,146.42,18.37]
[1727052826632,1.3496,146.52,146.42,21.7845]
[1727052826834,3.4134,146.48,146.42,21.7845]
[1727052827534,3.4134,146.48,146.43,3.4144]
[1727052827738,3.4131,146.49,146.43,3.4144]
[1727052828334,1.3496,146.52,146.42,18.37]
[1727052828335,3.4128,146.5,146.42,18.37]
[1727052828532,1.3496,146.52,146.45,18.37]
[1727052828933,3.4127,146.51,146.45,21.7838]
[1727052829436,3.4128,146.5,146.45,21.7838]
[1727052830534,1.3496,146.52,146.42,18.37]
[1727052831237,3.4133,146.48,146.43,3.4143]
[1727052831435,1.3496,146.52,146.42,18.37]
[1727052831637,1.3496,146.52,146.42,21.7846]
[1727052832142,1.3496,146.52,146.4,18.37]
[1727052833450,1.3496,146.52,146.41,3.4146]
[1727052834547,3.4134,146.48,146.4,18.37]
[1727052834744,1.3496,146.52,146.43,18.37]
[1727052835646,1.3496,146.52,146.45,3.4139]
[1727052835843,1.3496,146.52,146.43,18.37]
[1727052836043,3.4129,146.5,146.44,3.4141]
[1727052836548,1.3496,146.52,146.44,3.4141]
[1727052837752,3.413,146.49,146.44,3.4141]
[1727052837942,1.3496,146.52,146.43,21.7843]
[1727052838143,1.3496,146.52,146.43,18.37]
[1727052838444,3.4134,146.48,146.43,18.37]
[1727052838645,3.4134,146.48,146.43,21.7843]
[1727052839346,3.4051783,146.48,146.43,18.37]
[1727052839542,1.3496,146.52,146.4,18.37]
[1727052840052,3.4139,146.46,146.41,3.4148]
[1727052840250,3.44309331,146.45,146.38,18.37]
[1727052840448,14.9328689,146.5,146.38,18.37]
[1727052841151,14.9784275,146.5,146.38,18.37]
[1727052842241,14.9784275,146.51,146.4,18.37]
[1727052842448,1.3496,146.52,146.4,18.37]
[1727052842644,3.4134,146.48,146.4,18.37]
[1727052842954,1.3496,146.52,146.4,18.37]
[1727052843152,3.4139,146.46,146.41,3.4147]
[1727052843450,3.4139,146.46,146.4,18.37]
[1727052843451,1.3496,146.52,146.4,18.37]
[1727052843652,3.4133,146.48,146.43,3.4143]
[1727052844048,1.3496,146.52,146.42,18.37]
[1727052844250,1.3496,146.52,146.4,18.37]
[1727052844454,16.3280275,146.52,146.4,18.37]
[1727052844955,18.37,146.51,146.4,18.37]
[1727052845154,14.9784275,146.5,146.4,18.37]
[1727052845451,14.9784275,146.5,146.38,18.37]
[1727052845857,3.4142,146.44,146.39,3.4153]
[1727052846044,6.90958776,146.44,146.39,3.4153]
[1727052846249,3.4142,146.44,146.39,3.4153]
[1727052846555,21.83463956,146.46,146.31,85.36402132]
[1727052846743,21.83463956,146.46,146.35,18.37]
[1727052846744,16.2834275,146.45,146.35,18.37]
[1727052846944,3.4149,146.41,146.35,18.37]
[1727052847149,17.7012275,146.45,146.35,18.37]
[1727052847349,19.0553275,146.45,146.35,18.37]
[1727052847855,4.0769,146.45,146.35,18.37]
[1727052848158,3.4148,146.42,146.36,3.4158]
[1727052848651,1.305,146.45,146.37,18.37]
[1727052849155,1.305,146.45,146.39,18.37]
[1727052849347,1.305,146.45,146.4,3.4149]
[1727052850454,4.7189,146.45,146.4,3.4149]
[1727052850756,14.9784275,146.49,146.39,18.37]
[1727052851148,3.4135,146.47,146.39,18.37]
[1727052851344,3.43811716,146.46,146.41,3.4148]
[1727052851553,14.9784275,146.47,146.39,18.37]
[1727052851752,3.4139,146.46,146.39,18.37]
[1727052851958,14.9784275,146.49,146.39,18.37]
[1727052852356,3.4138,146.46,146.39,18.37]
[1727052852557,3.42968296,146.47,146.39,18.37]
[1727052852745,3.4138,146.46,146.39,18.37]
[1727052852947,14.9784275,146.49,146.4,3.4149]
[1727052854058,14.9784275,146.49,146.39,18.37]
[1727052854059,14.9784275,146.49,146.41,3.4148]
[1727052854649,3.4138,146.46,146.41,3.4148]
[1727052854847,3.34974015,146.45,146.41,3.4148]
[1727052855048,3.4138,146.46,146.41,3.4148]
[1727052855453,6.8692151,146.46,146.41,3.4148]
[1727052855852,3.414,146.45,146.4,3.4149]
[1727052856452,3.414,146.45,146.41,3.4148]
[1727052856754,3.35975401,146.46,146.4,11.48]
[1727052856955,14.9784275,146.46,146.4,11.48]
[1727052857158,3.45678168,146.47,146.37,11.48]
[1727052857358,11.48,146.48,146.39,11.48]
[1727052857554,3.4141,146.45,146.4,3.4149]
[1727052857957,14.9784275,146.47,146.4,3.4149]
[1727052858157,3.4141,146.45,146.4,3.4149]
[1727052858359,14.9784275,146.46,146.4,3.4149]
[1727052858565,14.9784275,146.47,146.4,3.4149]
[1727052858965,14.9784275,146.49,146.43,11.48]
[1727052859357,3.4134,146.48,146.43,11.48]
[1727052859558,1.4178,146.5,146.43,11.48]
[1727052859559,3.45725415,146.47,146.43,11.48]
[1727052859760,1.4178,146.5,146.43,11.48]
[1727052859962,3.4137,146.47,146.43,11.48]
[1727052860153,6.84122682,146.47,146.43,11.48]
[1727052860570,6.84122682,146.47,146.42,3.4144]
[1727052860869,3.4138,146.46,146.41,14.8948]
[1727052861069,11.48,146.49,146.39,11.48]
[1727052861459,3.4145,146.43,146.39,11.48]
[1727052861767,6.82357537,146.43,146.39,11.48]
[1727052862367,14.9784275,146.48,146.39,11.48]
[1727052862555,3.49371241,146.48,146.39,11.48]
[1727052862760,3.4137,146.46,146.4,3.415]
[1727052863260,3.4137,146.46,146.41,11.48]
[1727052863867,3.4137,146.46,146.41,14.8947]
[1727052864061,3.4137,146.46,146.32,14.97996583]
[1727052864062,18.44411913,146.48,146.39,11.48]
[1727052864264,3.46569163,146.48,146.39,11.48]
[1727052864469,26.4584275,146.49,146.39,11.48]
[1727052864670,14.9784275,146.48,146.39,11.48]
[1727052864869,18.33852864,146.48,146.39,11.48]
[1727052865074,26.4584275,146.47,146.39,11.48]
[1727052865374,14.9784275,146.46,146.39,11.48]
[1727052865577,19.71725248,146.46,146.39,11.48]
[1727052865766,3.4145,146.43,146.39,11.48]
[1727052866471,3.4145,146.43,146.39,14.8953]
[1727052866880,4.73882498,146.46,146.41,3.4148]
[1727052867075,4.73882498,146.46,146.41,11.48]
[1727052867374,3.33162498,146.46,146.41,11.48]
[1727052867570,3.4135,146.47,146.42,3.4146]
[1727052867875,26.53515691,146.49,146.42,3.4146]
[1727052868074,3.4139,146.46,146.41,14.8947]
[1727052868272,6.78789207,146.46,146.41,14.8947]
[1727052868685,3.37399207,146.46,146.41,11.48]
[1727052868866,15.05558327,146.47,146.39,11.48]
[1727052869067,3.4433484,146.47,146.39,11.48]
[1727052869268,15.05558327,146.47,146.39,11.48]
[1727052869472,3.4142,146.44,146.39,14.8952]
[1727052870281,3.46931273,146.43,146.39,14.8952]
[1727052870783,6.88381273,146.43,146.39,14.8952]
[1727052870977,3.4145,146.43,146.4,3.415]
[1727052872880,6.90650233,146.44,146.4,3.415]
[1727052873385,15.05951225,146.48,146.4,3.415]
[1727052873884,3.35178351,146.48,146.4,3.415]
[1727052874075,26.53951225,146.49,146.41,11.48]
[1727052874275,3.4136,146.47,146.41,11.48]
[1727052874504,3.3370917,146.47,146.42,3.4146]
[1727052874788,15.05951225,146.49,146.42,3.4146]
[1727052875085,3.4135,146.47,146.42,3.4146]
[1727052875285,6.84124171,146.47,146.42,3.4146]
[1727052875480,3.4135,146.47,146.43,3.4143]
[1727052875982,15.05951225,146.49,146.44,11.48]
[1727052876282,6.8216,146.59,146.4,11.48]
[1727052876283,11.48,146.6,146.48,11.48]
[1727052876488,2.7198,146.58,146.51,11.48]
[1727052876674,2.7198,146.58,146.53,11.48]
[1727052877181,6.1309,146.58,146.53,11.48]
[1727052877375,2.7198,146.58,146.53,11.48]
[1727052878080,3.4112,146.57,146.53,11.48]
[1727052878288,2.7198,146.58,146.53,11.48]
[1727052878480,2.7198,146.58,146.53,14.892]
[1727052878681,1.3862,146.58,146.53,14.892]
[1727052878987,1.3862,146.58,146.53,11.48]
[1727052879283,1.3862,146.58,146.51,11.48]
[1727052879888,3.4116,146.55,146.51,11.48]
[1727052880589,3.4114,146.56,146.51,11.48]
[1727052881474,1.3862,146.58,146.51,11.48]
[1727052881892,1.3862,146.58,146.4,85.35510078]
[1727052882191,1.3862,146.58,146.5,11.48]
[1727052882583,3.4114,146.56,146.51,14.8925]
[1727052883182,2.6989,146.58,146.51,11.48]
[1727052883684,2.6989,146.58,146.49,11.48]
[1727052884285,3.412,146.54,146.49,11.48]
[1727052884981,3.4117,146.55,146.49,11.48]
[1727052885487,2.6989,146.58,146.49,11.48]
[1727052886297,14.1789,146.58,146.47,11.48]
[1727052886684,3.4124,146.52,146.47,14.8934]
[1727052886888,14.41114577,146.57,146.34,6.833]
[1727052887081,3.4134,146.48,146.34,6.833]
[1727052887285,3.36326391,146.48,146.44,11.48]
[1727052887579,1.4401,146.51,146.45,11.48]
[1727052887784,3.4131,146.49,146.45,11.48]
[1727052888092,3.38707757,146.48,146.45,11.48]
[1727052888285,3.38707757,146.48,146.45,14.8938]
[1727052888493,1.4401,146.51,146.45,14.8938]
[1727052888682,1.4401,146.51,146.45,11.48]
[1727052889395,3.4132,146.49,146.44,11.48]
[1727052889696,6.81906241,146.49,146.44,11.48]
[1727052890692,6.81906241,146.49,146.34,6.833]
[1727052890693,1.4401,146.51,146.42,3.4146]
[1727052890990,1.4401,146.51,146.42,11.48]
[1727052890991,4.93193575,146.51,146.42,11.48]
[1727052891194,3.4135,146.47,146.42,14.8945]
[1727052891588,6.81447014,146.47,146.42,14.8945]
[1727052891900,6.81447014,146.47,146.42,11.48]
[1727052892598,3.414,146.45,146.4,11.48]
[1727052893491,3.4142,146.44,146.4,11.48]
[1727052893695,14.43383989,146.5,146.31,98.72123066]
[1727052893899,14.43383989,146.5,146.35,11.48]
[1727052893900,3.4149,146.41,146.35,11.48]
[1727052894092,11.48,146.45,146.36,3.416]
[1727052894093,3.50053837,146.4,146.36,3.416]
[1727052894289,1.4114,146.44,146.35,11.48]
[1727052894695,3.415,146.41,146.37,3.4157]
[1727052894897,6.79594946,146.41,146.37,3.4157]
[1727052895098,6.79594946,146.41,146.31,102.16455921]
[1727052895099,1.4114,146.44,146.38,11.48]
[1727052895294,1.381,146.46,146.4,11.48]
[1727052895692,3.4143,146.44,146.4,14.8951]
[1727052895999,1.381,146.46,146.4,11.48]
[1727052896394,3.4144,146.43,146.4,11.48]
[1727052896602,3.33140548,146.43,146.4,11.48]
[1727052896798,1.381,146.46,146.4,11.48]
[1727052898396,3.4144,146.44,146.4,11.48]
[1727052898592,1.381,146.46,146.4,11.48]
[1727052898794,3.4141,146.45,146.4,11.48]
[1727052899298,1.381,146.46,146.4,11.48]
[1727052900004,1.381,146.46,146.39,3.4153]
[1727052900201,1.381,146.46,146.38,11.48]
[1727052900400,1.381,146.46,146.38,14.8955]
[1727052900597,1.381,146.46,146.38,11.48]
[1727052900799,1.381,146.46,146.4,11.48]
[1727052901193,1.381,146.46,146.38,11.48]
[1727052901399,3.4142,146.44,146.38,11.48]
[1727052901593,3.46579648,146.43,146.39,3.4151]
[1727052901798,3.4145,146.43,146.38,11.48]
[1727052902002,3.47843914,146.42,146.38,11.48]
[1727052902200,1.381,146.46,146.38,11.48]
[1727052902406,1.381,146.46,146.39,11.48]
[1727052902801,4.7947,146.46,146.41,3.4147]
[1727052903007,1.381,146.46,146.39,11.48]
[1727052904105,3.4143,146.44,146.39,14.8953]
[1727052904304,3.41328444,146.43,146.39,14.8953]
[1727052904901,3.41328444,146.43,146.4,3.4151]
[1727052905107,1.381,146.46,146.39,11.48]
[1727052905310,1.381,146.46,146.41,11.48]
[1727052905507,11.48,146.49,146.41,11.48]
[1727052905808,4.2586,146.5,146.41,11.48]
[1727052906708,3.4136,146.47,146.42,3.4146]
[1727052907595,4.2586,146.5,146.43,11.48]
[1727052908097,2.8876,146.5,146.43,11.48]
[1727052908806,3.413,146.49,146.44,3.4141]
[1727052909205,2.8876,146.5,146.43,11.48]
[1727052909403,2.8876,146.5,146.41,11.48]
[1727052909604,3.4135,146.47,146.42,3.4145]
[1727052909905,3.4135,146.47,146.41,11.48]
[1727052910103,3.4141,146.45,146.39,11.48]
[1727052910408,3.4141,146.45,146.39,14.94361462]
[1727052910711,3.4141,146.45,146.4,3.4149]
[1727052910907,3.4141,146.45,146.39,14.94361462]
[1727052911303,2.8876,146.5,146.39,11.48]
[1727052911500,1.3872,146.48,146.39,11.48]
[1727052911704,27.30270516,146.48,146.39,11.48]
[1727052911908,12.8672,146.48,146.39,14.8952]
[1727052912297,3.4143,146.44,146.39,14.8952]
[1727052912501,3.37615305,146.43,146.39,14.8952]
[1727052913307,6.79055305,146.43,146.39,14.8952]
[1727052913613,3.4144,146.43,146.39,14.8952]
[1727052914115,6.848633,146.43,146.39,14.8952]
[1727052914311,3.4144,146.43,146.39,14.8952]
[1727052914904,11.48,146.46,146.38,11.48]
[1727052915305,3.4148,146.42,146.38,11.48]
[1727052915514,3.42740006,146.41,146.38,11.48]
[1727052915819,3.4145,146.43,146.38,14.8954]
[1727052916011,6.89109719,146.43,146.38,14.8954]
[1727052916308,3.4145,146.43,146.38,11.48]
[1727052916815,3.37456434,146.42,146.38,11.48]
[1727052917005,3.37456434,146.42,146.38,14.8955]
[1727052917806,12.8672,146.48,146.38,11.48]
[1727052917807,3.4142,146.44,146.38,11.48]
[1727052918008,3.50099091,146.43,146.38,11.48]
[1727052918510,12.8672,146.48,146.38,11.48]
[1727052918915,12.8672,146.48,146.39,3.4153]
[1727052919517,3.4143,146.44,146.39,3.4153]
[1727052919710,3.41146723,146.43,146.39,3.4153]
[1727052920013,12.8672,146.48,146.38,11.48]
[1727052920202,12.8672,146.48,146.31,98.72123066]
[1727052920203,11.48,146.46,146.31,98.72123066]
[1727052920410,11.48,146.43,146.34,3.4163]
[1727052920613,2.6594,146.42,146.34,3.4163]
[1727052920813,2.6594,146.42,146.34,3.37217692]
[1727052920814,6.13270807,146.42,146.34,3.37217692]
[1727052921116,3.4155,146.39,146.33,11.48]
[1727052921321,3.39506809,146.38,146.34,3.37422688]
[1727052921519,3.4157,146.38,146.33,11.48]
[1727052921723,4.059,146.42,146.33,11.48]
[1727052922020,7.4615846,146.42,146.34,6.88482484]
[1727052922413,4.059,146.42,146.34,3.4163]
[1727052922618,11.48,146.41,146.31,11.48]
[1727052922806,4.059,146.42,146.18,81.98]
[1727052923119,11.48,146.34,146.26,3.4182]
[1727052923317,11.48,146.3,146.09,10.2666]
[1727052923517,11.48,146.28,146.19,11.48]
[1727052923717,3.4185,146.26,146.21,3.4194]
[1727052923918,11.48,146.28,146.19,14.81391183]
[1727052924315,3.47992008,146.3,146.22,3.4193]
[1727052924615,18.39,146.26,146.02,181.20147863]
[1727052924824,18.39,146.26,146.12,18.39]
[1727052924825,4.1738,146.25,146.12,18.39]
[1727052925009,4.1738,146.25,146.05,18.39]
[1727052925010,18.39,146.23,146.1,18.39]
[1727052925221,4.1738,146.25,146.09,3.4223]
[1727052925222,3.4209,146.15,146.09,3.4223]
[1727052925920,6.7875961,146.14,146.09,3.4223]
[1727052926223,18.39,146.2,146.06,120.5925547]
[1727052926419,3.4211,146.15,146.06,98.71408613]
[1727052926725,21.80755741,146.15,146.0,3.35045922]
[1727052927019,18.39,146.13,145.9,82.04]
[1727052927220,18.39,146.13,146.0,18.39]
[1727052927724,3.4228,146.08,146.01,3.4241]
[1727052927912,6.77599792,146.08,146.01,3.4241]
[1727052928418,3.35319792,146.08,145.98,18.39]
[1727052928616,18.39,146.1,145.98,18.39]
[1727052929215,21.75517974,146.1,145.98,18.39]
[1727052929723,3.423,146.07,146.0,3.4242]
[1727052930025,21.75517974,146.1,145.98,18.39]
[1727052930325,3.4229,146.07,145.9,103.7838826]
[1727052930519,40.19888037,146.06,145.98,18.39]
[1727052930713,54.96936198,146.05,145.98,21.86159909]
[1727052931021,5.68095446,146.04,145.98,21.86159909]
[1727052931221,18.19597206,146.08,145.98,21.86159909]
[1727052931424,14.74427198,146.07,146.01,3.424]
[1727052931725,14.74427198,146.06,145.98,18.39]
[1727052932022,14.74427198,146.05,146.0,3.4242]
[1727052932222,20.86143785,146.04,146.0,3.4242]
[1727052932426,20.86143785,146.04,145.98,18.39]
[1727052932427,15.19056401,146.03,146.02,3.424]
[1727052932611,15.19056401,146.03,145.98,18.39]
[1727052932612,8.36777707,146.09,146.01,18.39]
[1727052932810,12.95964078,146.08,146.01,18.39]
[1727052933022,21.32741785,146.07,145.97,18.39]
[1727052933220,8.33872054,145.98,145.97,18.39]
[1727052933424,17.49562364,146.06,145.97,18.39]
[1727052933610,12.9471813,146.05,145.99,3.4245]
[1727052933813,17.49562364,146.07,145.99,3.4245]
[1727052934011,17.49562364,146.06,145.99,3.4245]
[1727052934224,17.49562364,146.05,145.99,3.4245]
[1727052934424,17.49562364,146.04,145.99,3.4245]
[1727052934614,18.39,146.09,145.99,3.4245]
[1727052934821,18.39,146.07,145.98,3.4249]
[1727052935019,17.59999846,146.06,145.95,98.96221795]
[1727052935320,17.59999846,146.06,145.79,10.2878]
[1727052935526,8.30510937,145.9,145.89,18.39]
[1727052935828,3.425,145.98,145.89,18.39]
[1727052936028,3.4821127,145.97,145.89,18.39]
[1727052936324,17.59999846,146.0,145.89,18.39]
[1727052936523,18.39,146.04,145.96,3.4254]
[1727052936730,4.0873,146.05,145.94,18.39]
[1727052937020,3.424,146.02,145.98,3.4249]
[1727052937323,7.5106,146.05,145.96,18.39]
[1727052937521,2.7423,146.05,145.99,18.39]
[1727052937725,2.7423,146.05,146.01,3.4241]
[1727052938115,1.4467,146.17,146.04,3.4234]
[1727052938116,18.39,146.15,146.04,3.4234]
[1727052938317,18.39,146.15,146.01,18.39]
[1727052938615,17.40263618,146.14,146.04,18.39]
[1727052938821,3.48494659,146.13,146.04,18.39]
[1727052939118,17.40263618,146.14,146.04,18.39]
[1727052939319,3.4216,146.12,146.07,3.4226]
[1727052939617,3.50996637,146.13,146.07,3.4226]
[1727052939924,6.93146637,146.13,146.08,3.4225]
[1727052940233,3.4215,146.13,146.08,3.4225]
[1727052940524,3.4212,146.14,146.04,18.39]
[1727052940721,2.7144,146.16,146.04,18.39]
[1727052941030,3.4219,146.11,146.06,3.423]
[1727052941326,18.39,146.14,146.01,18.39]
[1727052941533,3.4231,146.06,146.01,3.4241]
[1727052941822,18.39,146.1,145.97,100.55]
[1727052942027,3.4225,146.09,145.99,18.39]
[1727052942236,18.39,146.12,145.99,18.39]
[1727052942618,8.89065365,146.11,145.99,18.39]
[1727052942819,8.89065365,146.1,145.99,18.39]
[1727052943015,3.4226,146.08,146.02,3.4238]
[1727052943223,8.89065365,146.07,145.99,18.39]
[1727052943426,8.89065365,146.06,145.99,18.39]
[1727052943622,18.39,146.12,146.01,3.424]
[1727052943826,8.88346889,146.11,146.01,3.424]
[1727052944028,8.88346889,146.1,146.01,3.424]
[1727052944330,3.423,146.07,146.01,3.424]
[1727052944830,14.42772122,146.06,146.02,3.4239]
[1727052945132,5.54909379,146.05,146.02,3.4239]
[1727052945316,3.423,146.07,146.02,3.4239]
[1727052945625,5.54635026,146.06,146.02,3.4239]